bitfinex/quotes_SOLUSD_20250429
["timestamp","ask_amount","ask_price","bid_price","bid_amount"]
[1745938836986,0.03,148.44,148.41,15.26925065]
[1745938837582,24.41823665,148.43,148.39,24.41823665]
[1745938839508,24.41823665,148.41,148.37,24.41823665]
[1745938839682,24.41823665,148.41,148.36,37.95823665]
[1745938840306,24.41823665,148.41,148.36,44.69839259]
[1745938841973,24.41823665,148.42,148.38,24.41823665]
[1745938842175,26.03,148.44,148.39,24.41823665]
[1745938842405,0.03,148.44,148.42,24.41823665]
[1745938842606,0.03,148.44,148.43,24.41823665]
[1745938843102,0.03,148.44,148.43,31.15541916]
[1745938845381,0.03,148.44,148.43,24.41823665]
[1745938845688,0.03,148.44,148.42,6.73743986]
[1745938845897,0.03,148.44,148.43,24.41823665]
[1745938846688,0.03,148.44,148.42,24.41823665]
[1745938847001,0.03,148.44,148.43,24.41823665]
[1745938847782,0.03,148.44,148.43,31.15541916]
[1745938847989,0.03,148.44,148.43,6.73718251]
[1745938848203,0.03,148.44,148.43,24.41823665]
[1745938849923,24.44823665,148.44,148.4,24.41823665]
[1745938850081,24.41823665,148.42,148.38,6.73925971]
[1745938850429,24.41823665,148.42,148.37,31.15793929]
[1745938850589,24.41823665,148.42,148.38,24.41823665]
[1745938850908,24.41823665,148.43,148.38,24.41823665]
[1745938851101,24.41823665,148.43,148.39,24.41823665]
[1745938851501,24.44823665,148.44,148.39,31.15697271]
[1745938851723,24.44823665,148.44,148.41,24.41823665]
[1745938851724,0.03,148.44,148.41,24.41823665]
[1745938851890,0.03,148.44,148.43,24.41823665]
[1745938853793,0.03,148.44,148.43,31.15541916]
[1745938854120,0.03,148.44,148.43,24.41823665]
[1745938854511,0.03,148.44,148.42,24.41823665]
[1745938854701,0.03,148.44,148.4,31.15678112]
[1745938855515,24.41823665,148.43,148.38,24.41823665]
[1745938855695,0.03,148.44,148.4,24.41823665]
[1745938855893,0.03,148.44,148.38,6.73927318]
[1745938855894,0.03,148.44,148.42,24.41823665]
[1745938856997,0.03,148.44,148.41,24.41823665]
[1745938857196,0.03,148.44,148.4,24.41823665]
[1745938857697,24.44823665,148.44,148.38,23.58790507]
[1745938857900,24.44823665,148.44,148.4,24.41823665]
[1745938858106,0.03,148.44,148.4,24.41823665]
[1745938858307,0.03,148.44,148.39,44.64964886]
[1745938858507,0.03,148.44,148.43,24.41823665]
[1745938859531,0.03,148.44,148.42,24.41823665]
[1745938859743,0.03,148.44,148.4,6.73854447]
[1745938860035,0.03,148.44,148.41,24.41823665]
[1745938860330,0.03,148.44,148.42,24.41823665]
[1745938861014,0.03,148.44,148.41,24.41823665]
[1745938861206,24.44823665,148.44,148.39,13.54]
[1745938861407,24.44823665,148.44,148.39,37.95823665]
[1745938861726,24.44823665,148.44,148.39,44.69704414]
[1745938863433,24.44823665,148.44,148.4,24.41823665]
[1745938863801,24.44823665,148.44,148.4,31.1567019]
[1745938864101,24.44823665,148.44,148.4,6.73846525]
[1745938864333,24.41823665,148.43,148.39,13.54]
[1745938866028,24.41823665,148.43,148.39,20.27898435]
[1745938866225,26.01613665,148.44,148.4,24.41823665]
[1745938866824,26.01613665,148.44,148.39,44.697221]
[1745938867336,24.41823665,148.42,148.39,13.54]
[1745938868205,24.41823665,148.42,148.38,24.41823665]
[1745938868399,24.41823665,148.4,148.35,13.54]
[1745938868600,24.41823665,148.4,148.35,37.95823665]
[1745938868824,40.99803469,148.44,148.37,24.41823665]
[1745938869014,24.41823665,148.42,148.38,24.41823665]
[1745938869531,24.41823665,148.42,148.37,24.41823665]
[1745938870132,24.41823665,148.42,148.38,24.41823665]
[1745938870304,24.41823665,148.43,148.39,24.41823665]
[1745938870824,0.03,148.44,148.41,24.41823665]
[1745938872842,0.03,148.44,148.42,24.41823665]
[1745938873046,0.03,148.44,148.43,24.41823665]
[1745938874049,0.03,148.44,148.42,24.41823665]
[1745938874232,0.03,148.44,148.41,24.41823665]
[1745938875853,24.41823665,148.42,148.35,6.74081563]
[1745938876044,24.41823665,148.41,148.36,24.41823665]
[1745938876239,24.41823665,148.4,148.36,24.41823665]
[1745938876446,24.41823665,148.41,148.37,24.41823665]
[1745938877024,24.41823665,148.41,148.37,31.15811266]
[1745938877251,24.41823665,148.42,148.38,24.41823665]
[1745938877546,52.06093665,148.43,148.38,24.41823665]
[1745938879458,24.41823665,148.41,148.35,6.74081563]
[1745938879756,24.41823665,148.41,148.37,24.41823665]
[1745938881149,24.41823665,148.42,148.38,24.41823665]
[1745938881452,26.0,148.43,148.39,24.41823665]
[1745938882756,24.41823665,148.42,148.38,24.41823665]
[1745938884757,24.41823665,148.42,148.38,31.15761582]
[1745938884926,50.41823665,148.43,148.39,24.41823665]
[1745938887057,50.41823665,148.43,148.37,24.41823665]
[1745938887058,24.41823665,148.41,148.37,24.41823665]
[1745938887851,24.41823665,148.42,148.38,24.41823665]
[1745938888651,24.44823665,148.44,148.39,24.41823665]
[1745938888850,24.44823665,148.44,148.4,24.41823665]
[1745938889256,0.03,148.44,148.4,24.41823665]
[1745938889455,24.44823665,148.44,148.4,24.41823665]
[1745938889658,15.29221472,148.44,148.4,15.26221472]
[1745938890962,15.26221472,148.43,148.35,23.59270055]
[1745938891142,15.26221472,148.43,148.39,15.26221472]
[1745938891561,24.42464937,148.43,148.38,24.42464937]
[1745938892357,24.42464937,148.43,148.38,31.16391225]
[1745938894085,24.42464937,148.41,148.37,31.16433941]
[1745938894446,24.42464937,148.42,148.37,31.16433941]
[1745938894650,24.42464937,148.42,148.38,24.42464937]
[1745938896873,24.42464937,148.43,148.38,31.163946]
[1745938898151,24.42464937,148.43,148.39,24.42464937]
[1745938898567,24.45464937,148.44,148.39,24.42464937]
[1745938898754,24.45464937,148.44,148.4,24.42464937]
[1745938898955,24.45464937,148.44,148.39,24.42464937]
[1745938899872,0.03,148.44,148.41,24.42464937]
[1745938900071,0.03,148.44,148.38,1.6177]
[1745938900072,0.03,148.44,148.4,24.42464937]
[1745938900273,24.45464937,148.44,148.4,24.42464937]
[1745938901678,24.45464937,148.44,148.4,31.16284972]
[1745938901859,0.03,148.44,148.4,31.16284972]
[1745938903567,0.03,148.44,148.41,24.42464937]
[1745938905180,0.03,148.44,148.41,31.16265354]
[1745938906377,0.03,148.44,148.43,24.42464937]
[1745938907252,0.03,148.44,148.41,31.16265354]
[1745938907684,0.03,148.44,148.4,6.73835239]
[1745938907982,0.03,148.44,148.42,24.42464937]
[1745938908275,0.03,148.44,148.43,24.42464937]
[1745938908656,0.03,148.44,148.38,18.46549845]
[1745938908889,24.45464937,148.44,148.38,1.6177]
[1745938909087,24.42464937,148.42,148.38,31.16399421]
[1745938909257,24.42464937,148.41,148.37,13.54]
[1745938909590,24.42464937,148.41,148.36,31.16485381]
[1745938909775,24.42464937,148.42,148.38,24.42464937]
[1745938910283,24.42464937,148.42,148.37,24.42464937]
[1745938910576,24.42464937,148.41,148.37,24.42464937]
[1745938910887,24.42464937,148.41,148.36,31.16485381]
[1745938911462,24.42464937,148.41,148.37,24.42464937]
[1745938911675,15.26801844,148.41,148.37,15.26801844]
[1745938911978,15.26801844,148.39,148.35,15.26801844]
[1745938912369,15.26801844,148.4,148.36,15.26801844]
[1745938913279,15.26801844,148.39,148.35,15.26801844]
[1745938913479,15.26801844,148.39,148.34,6.74118565]
[1745938913650,15.26801844,148.39,148.35,15.26801844]
[1745938914265,15.26801844,148.4,148.36,15.26801844]
[1745938915169,15.26801844,148.39,148.35,15.26801844]
[1745938915369,15.26801844,148.38,148.34,22.00916678]
[1745938915788,91.2475533,148.41,148.34,22.00916678]
[1745938915789,15.26801844,148.39,148.34,22.00916678]
[1745938916091,15.26801844,148.39,148.35,15.26801844]
[1745938916775,98.16801844,148.4,148.35,15.26801844]
[1745938917186,15.26801844,148.38,148.33,20.34457153]
[1745938917496,15.26801844,148.39,148.34,15.26801844]
[1745938917875,98.16801844,148.4,148.35,15.26801844]
[1745938918754,98.16801844,148.39,148.35,15.26801844]
[1745938918958,15.26801844,148.38,148.33,20.34462455]
[1745938919359,15.26801844,148.38,148.34,15.26801844]
[1745938921259,82.9,148.39,148.34,15.26801844]
[1745938921462,98.16801844,148.39,148.35,15.26801844]
[1745938922194,15.26801844,148.38,148.34,22.00909686]
[1745938922368,15.26801844,148.38,148.34,15.26801844]
[1745938923072,98.16801844,148.39,148.34,22.00928448]
[1745938923292,98.16801844,148.39,148.35,15.26801844]
[1745938923498,98.16801844,148.39,148.35,22.00877705]
[1745938924484,98.16801844,148.39,148.37,15.26801844]
[1745938924485,82.9,148.39,148.37,15.26801844]
[1745938925370,98.16801844,148.39,148.34,6.74106567]
[1745938925564,98.16801844,148.38,148.34,15.26801844]
[1745938925766,98.16801844,148.38,148.34,6.74126879]
[1745938925965,15.26801844,148.37,148.33,35.61254545]
[1745938926397,15.26801844,148.35,148.33,0.063]
[1745938928416,15.26801844,148.34,148.33,0.063]
[1745938929477,24.45236,148.34,148.33,0.063]
[1745938930090,25.98246,148.36,148.33,0.063]
[1745938930369,24.45236,148.34,148.33,0.063]
[1745938931272,50.45236,148.34,148.33,0.063]
[1745938931673,57.19363005,148.34,148.33,0.063]
[1745938933675,57.33579162,148.34,148.33,0.063]
[1745938933901,100.43780048,148.34,148.33,0.063]
[1745938934206,51.56824048,148.34,148.33,0.063]
[1745938934799,32.91859162,148.34,148.33,0.063]
[1745938935500,27.5828,148.34,148.33,0.063]
[1745938935702,58.77643005,148.34,148.33,0.063]
[1745938936398,52.03516,148.34,148.33,0.063]
[1745938936600,1.6077,148.38,148.33,24.51536]
[1745938936784,26.06006,148.38,148.34,24.45236]
[1745938936995,24.45236,148.37,148.33,24.51536]
[1745938937195,6.73913869,148.39,148.35,24.45236]
[1745938937196,24.45236,148.39,148.35,24.45236]
[1745938937394,26.0,148.38,148.35,24.45236]
[1745938937800,24.45236,148.39,148.34,24.45236]
[1745938937995,26.0,148.38,148.34,24.45236]
[1745938938194,31.1913721,148.39,148.33,24.51536]
[1745938938195,24.45236,148.37,148.33,24.51536]
[1745938938610,24.45236,148.36,148.33,0.063]
[1745938938805,24.45236,148.37,148.33,24.51536]
[1745938939393,26.0,148.38,148.33,24.51536]
[1745938939697,1.6178,148.42,148.37,24.45236]
[1745938939897,1.6178,148.42,148.39,24.45236]
[1745938940110,32.21964886,148.44,148.4,24.45236]
[1745938940111,38.02236,148.44,148.4,24.45236]
[1745938940294,64.02236,148.44,148.4,24.45236]
[1745938940607,107.35236,148.43,148.39,24.45236]
[1745938940805,82.9,148.43,148.4,24.45236]
[1745938941206,82.9,148.43,148.39,24.45236]
[1745938941411,82.9,148.43,148.42,24.45236]
[1745938941896,0.03,148.44,148.42,24.45236]
[1745938942094,0.03,148.44,148.43,24.45236]
[1745938942684,0.03,148.44,148.42,24.45236]
[1745938943211,0.03,148.44,148.43,24.45236]
[1745938943407,0.03,148.44,148.42,24.45236]
[1745938943797,0.03,148.44,148.41,24.45236]
[1745938944607,0.03,148.44,148.42,24.45236]
[1745938944799,0.03,148.44,148.43,24.45236]
[1745938945205,0.03,148.44,148.41,24.45236]
[1745938945414,24.48236,148.44,148.39,24.45236]
[1745938945603,107.38236,148.44,148.39,24.45236]
[1745938945914,107.38236,148.44,148.4,24.45236]
[1745938946115,82.93,148.44,148.4,24.45236]
[1745938948510,107.35236,148.43,148.39,24.45236]
[1745938948695,82.9,148.43,148.4,24.45236]
[1745938950295,82.9,148.43,148.41,24.45236]
[1745938950604,0.03,148.44,148.42,24.45236]
[1745938950805,0.03,148.44,148.43,24.45236]
[1745938951912,0.03,148.44,148.42,24.45236]
[1745938952216,107.35236,148.43,148.38,20.27928408]
[1745938952416,107.35236,148.43,148.36,6.74019614]
[1745938952417,24.45236,148.41,148.36,6.74019614]
[1745938952725,24.45236,148.4,148.35,6.74066564]
[1745938952889,107.35236,148.39,148.35,24.45236]
[1745938953086,24.45236,148.38,148.34,31.19343811]
[1745938954725,24.45236,148.38,148.34,24.45236]
[1745938955215,107.35236,148.39,148.33,20.32454466]
[1745938955406,107.35236,148.39,148.35,24.45236]
[1745938955606,82.9,148.39,148.35,24.45236]
[1745938955820,107.35236,148.39,148.35,24.45236]
[1745938957120,82.9,148.39,148.35,24.45236]
[1745938957299,107.35236,148.39,148.35,24.45236]
[1745938959522,107.35236,148.39,148.33,20.32455827]
[1745938959815,82.9,148.39,148.36,24.45236]
[1745938960119,82.9,148.43,148.38,24.45236]
[1745938960324,82.9,148.42,148.4,24.45236]
[1745938960618,82.9,148.42,148.39,24.45236]
[1745938961001,82.9,148.42,148.37,6.73980905]
[1745938961210,24.45236,148.41,148.37,24.45236]
[1745938961402,24.45236,148.41,148.36,24.45236]
[1745938962227,24.45236,148.39,148.35,24.45236]
[1745938962414,24.45236,148.39,148.34,24.45236]
[1745938962617,24.45236,148.38,148.34,24.45236]
[1745938963414,24.45236,148.39,148.35,24.45236]
[1745938964525,133.35236,148.4,148.36,24.45236]
[1745938965025,133.35236,148.4,148.33,13.583]
[1745938965223,24.45236,148.39,148.35,24.45236]
[1745938965530,24.45236,148.39,148.34,24.45236]
[1745938966109,24.45236,148.38,148.33,13.583]
[1745938966315,24.45236,148.37,148.33,0.063]
[1745938966609,24.45236,148.36,148.33,0.063]
[1745938966929,50.45236,148.37,148.33,0.063]
[1745938968009,31.19226912,148.37,148.33,0.063]
[1745938968909,107.35236,148.36,148.33,0.063]
[1745938969221,24.45236,148.34,148.33,0.063]
[1745938970006,107.35236,148.35,148.33,0.063]
[1745938970224,114.09328851,148.35,148.33,0.063]
[1745938971230,107.35236,148.35,148.33,0.063]
[1745938971827,82.9,148.35,148.33,0.063]
[1745938972534,82.9,148.35,148.33,24.51536]
[1745938975312,107.35236,148.35,148.33,0.063]
[1745938975531,24.45236,148.34,148.33,0.063]
[1745938976040,82.9,148.35,148.33,0.063]
[1745938976243,82.9,148.35,148.33,24.51536]
[1745938977930,82.9,148.35,148.33,0.063]
[1745938980424,107.35236,148.35,148.33,0.063]
[1745938980831,24.45236,148.34,148.33,0.063]
[1745938981925,43.24417043,148.34,148.33,0.063]
[1745938982821,49.98544048,148.34,148.33,0.063]
[1745938983834,80.55750048,148.34,148.33,0.063]
[1745938984222,56.10514048,148.34,148.33,0.063]
[1745938985443,18.79181043,148.33,148.32,0.063]
[1745938985647,70.79087043,148.3,148.29,0.063]
[1745938987915,75.98725876,148.3,148.29,0.063]
[1745938988437,50.45236,148.3,148.29,0.063]
[1745938989261,13.54,148.31,148.29,24.51536]
[1745938989425,44.79181043,148.32,148.29,24.51536]
[1745938989426,51.53407769,148.32,148.29,24.51536]
[1745938989624,75.98643769,148.32,148.29,0.063]
[1745938990133,24.45236,148.31,148.29,0.063]
[1745938990339,50.45236,148.3,148.29,0.063]
[1745938990650,26.0,148.3,148.29,0.063]
[1745938991248,50.45236,148.3,148.29,0.063]
[1745938992145,75.98725876,148.3,148.29,0.063]
[1745938992633,89.52725876,148.3,148.29,0.063]
[1745938997944,82.774,148.28,148.27,0.063]
[1745938998250,107.22636,148.28,148.27,0.063]
[1745938999033,43.24417043,148.28,148.27,0.063]
[1745938999441,57.66966827,148.28,148.27,0.063]
[1745938999951,82.12202827,148.28,148.27,0.063]
[1745939000535,57.66966827,148.28,148.27,0.063]
[1745939001927,33.21730827,148.28,148.27,0.063]
[1745939002138,51.49346827,148.28,148.27,0.063]
[1745939004325,69.24417043,148.28,148.27,0.063]
[1745939004525,18.79181043,148.29,148.27,0.063]
[1745939004943,50.45236,148.28,148.27,0.063]
[1745939006641,57.19635784,148.28,148.27,0.063]
[1745939006839,50.45236,148.28,148.27,0.063]
[1745939007041,26.0,148.28,148.27,0.063]
[1745939007856,18.45652517,148.32,148.27,24.51536]
[1745939007857,24.45236,148.32,148.27,24.51536]
[1745939008055,18.79181043,148.33,148.3,24.45236]
[1745939008248,13.54,148.34,148.31,24.45236]
[1745939008632,13.54,148.34,148.27,0.063]
[1745939008633,26.0,148.31,148.27,0.063]
[1745939008839,50.45236,148.31,148.27,24.51536]
[1745939010465,57.19502248,148.31,148.27,24.51536]
[1745939010641,57.19502248,148.31,148.27,0.063]
[1745939011142,50.45236,148.31,148.27,24.51536]
[1745939011459,57.1950384,148.31,148.27,24.51536]
[1745939012561,82.9,148.3,148.27,24.51536]
[1745939014583,24.45236,148.28,148.27,0.063]
[1745939014944,24.45236,148.29,148.27,0.063]
[1745939016349,69.24417043,148.28,148.27,0.063]
[1745939017269,43.24417043,148.28,148.27,0.063]
[1745939018570,49.98816827,148.28,148.27,0.063]
[1745939020148,74.44052827,148.28,148.27,0.063]
[1745939020651,49.98816827,148.28,148.27,0.063]
[1745939021373,108.774,148.26,148.25,0.063]
[1745939021688,133.22636,148.26,148.25,0.063]
[1745939023080,157.21543802,148.26,148.25,0.063]
[1745939023444,158.77613802,148.26,148.25,0.063]
[1745939023967,18.79181043,148.25,148.24,0.063]
[1745939024164,43.24417043,148.25,148.24,0.063]
[1745939024364,43.24417043,148.25,148.24,1e-08]
[1745939025046,49.98953299,148.25,148.24,1e-08]
[1745939025262,49.98953299,148.25,148.23,1e-08]
[1745939025473,56.78417043,148.24,148.23,1e-08]
[1745939028288,44.79181043,148.18,148.17,0.063]
[1745939028589,69.24417043,148.18,148.17,0.063]
[1745939031586,75.99271949,148.18,148.17,0.063]
[1745939037971,18.79181043,148.15,148.14,0.063]
[1745939038165,43.24417043,148.15,148.14,0.063]
[1745939039245,18.79181043,148.15,148.14,0.063]
[1745939041475,43.24417043,148.15,148.14,0.063]
[1745939041681,34.11420351,148.15,148.14,0.063]
[1745939043472,40.86411913,148.15,148.14,0.063]
[1745939044376,66.86411913,148.15,148.14,0.063]
[1745939044578,18.79181043,148.15,148.14,0.063]
[1745939044766,34.11420351,148.15,148.14,0.063]
[1745939044951,18.79181043,148.15,148.14,0.063]
[1745939045349,66.86411913,148.15,148.14,0.063]
[1745939045778,60.11420351,148.15,148.14,0.063]
[1745939045974,44.79181043,148.15,148.14,0.063]
[1745939046361,18.79181043,148.18,148.14,0.063]
[1745939046582,15.32239308,148.16,148.14,0.063]
[1745939046761,15.32239308,148.15,148.14,0.063]
[1745939046968,15.46455465,148.15,148.14,0.063]
[1745939047686,69.30812372,148.15,148.14,0.063]
[1745939049657,76.05803934,148.15,148.14,0.063]
[1745939051889,44.79181043,148.15,148.14,0.063]
[1745939052383,69.30812372,148.15,148.14,0.063]
[1745939053481,44.79181043,148.15,148.14,0.063]
[1745939054058,31.26506521,148.18,148.14,24.57931329]
[1745939054258,44.8044938,148.19,148.15,24.51631329]
[1745939054481,101.69181043,148.18,148.16,24.51631329]
[1745939054685,127.69181043,148.18,148.16,24.51631329]
[1745939055070,127.69181043,148.18,148.15,24.51631329]
[1745939055265,82.9,148.18,148.16,24.51631329]
[1745939055472,82.9,148.17,148.15,8.30903602]
[1745939055656,82.9,148.17,148.16,24.51631329]
[1745939055857,82.9,148.17,148.15,26.07571329]
[1745939056869,82.9,148.17,148.14,24.57931329]
[1745939057163,18.79181043,148.15,148.14,0.063]
[1745939057362,18.79181043,148.16,148.14,0.063]
[1745939057583,26.0,148.17,148.14,24.57931329]
[1745939058470,26.0,148.17,148.16,24.51631329]
[1745939059298,18.79181043,148.21,148.16,24.51631329]
[1745939059475,44.79181043,148.21,148.18,24.51631329]
[1745939059677,69.30812372,148.21,148.17,24.51631329]
[1745939059879,76.05534369,148.21,148.17,24.51631329]
[1745939060266,18.79181043,148.19,148.16,24.51631329]
[1745939061070,26.0,148.21,148.17,24.51631329]
[1745939061274,26.0,148.21,148.18,24.51631329]
[1745939062295,252.13646372,148.23,148.16,6.74929625]
[1745939062296,231.85,148.23,148.2,24.51631329]
[1745939062479,0.03,148.23,148.2,24.51631329]
[1745939062672,26.03,148.23,148.2,24.51631329]
[1745939063283,24.51631329,148.21,148.17,24.51631329]
[1745939063882,69.30812372,148.2,148.14,0.063]
[1745939064070,69.30812372,148.2,148.15,24.51631329]
[1745939064071,24.51631329,148.19,148.15,24.51631329]
[1745939064581,43.30812372,148.18,148.14,24.57931329]
[1745939065195,43.30812372,148.18,148.14,0.063]
[1745939065393,43.30812372,148.18,148.14,24.57931329]
[1745939065795,50.05671476,148.18,148.14,24.57931329]
[1745939066091,43.30812372,148.18,148.14,24.57931329]
[1745939066281,18.79181043,148.16,148.14,0.063]
[1745939066599,82.9,148.15,148.14,0.063]
[1745939067695,132.95803934,148.15,148.14,0.063]
[1745939068069,50.05803934,148.15,148.14,0.063]
[1745939069194,43.30812372,148.15,148.14,0.063]
[1745939069972,50.05803934,148.15,148.14,0.063]
[1745939071398,76.05803934,148.15,148.14,0.063]
[1745939074598,89.59803934,148.15,148.14,0.063]
[1745939075498,80.41059818,148.15,148.14,0.063]
[1745939076898,54.41059818,148.15,148.14,0.063]
[1745939077083,56.07419818,148.15,148.14,0.063]
[1745939077601,63.6088834,148.15,148.14,0.063]
[1745939080012,108.774,148.13,148.12,0.063]
[1745939080310,26.0,148.13,148.12,0.063]
[1745939081508,50.52715735,148.13,148.12,0.063]
[1745939085826,57.27798432,148.13,148.12,0.063]
[1745939086002,50.52715735,148.13,148.12,0.063]
[1745939087723,26.0,148.13,148.12,0.063]
[1745939089116,50.52715735,148.13,148.12,0.063]
[1745939092119,26.0,148.13,148.12,0.063]
[1745939092813,26.0,148.13,148.12,24.59015735]
[1745939093404,26.0,148.13,148.12,0.063]
[1745939096235,76.06979475,148.13,148.12,0.063]
[1745939097226,50.06979475,148.13,148.12,0.063]
[1745939097426,18.79181043,148.1,148.09,0.063]
[1745939099021,30.41488451,148.15,148.09,0.063]
[1745939099228,26.0,148.12,148.11,15.33197914]
[1745939099441,13.54,148.15,148.11,15.33197914]
[1745939099735,26.0,148.12,148.11,15.33197914]
[1745939100432,13.54,148.15,148.11,15.33197914]
[1745939100733,46.28999345,148.15,148.11,15.33197914]
[1745939100903,61.62197259,148.15,148.11,15.33197914]
[1745939101404,46.28999345,148.15,148.11,15.33197914]
[1745939102339,18.79181043,148.14,148.1,15.33197914]
[1745939102505,34.12378957,148.14,148.1,15.33197914]
[1745939102951,18.79181043,148.12,148.09,15.39497914]
[1745939103243,82.9,148.11,148.09,15.39497914]
[1745939103454,101.69181043,148.1,148.09,0.063]
[1745939103927,82.9,148.1,148.09,15.39497914]
[1745939104135,82.9,148.1,148.09,0.063]
[1745939106148,82.9,148.13,148.09,15.39497914]
[1745939106441,82.9,148.13,148.12,15.33197914]
[1745939106740,82.9,148.12,148.1,15.33197914]
[1745939106928,82.9,148.12,148.09,15.39497914]
[1745939107113,82.9,148.11,148.09,15.39497914]
[1745939107630,82.9,148.11,148.1,15.33197914]
[1745939108421,82.9,148.11,148.09,0.063]
[1745939108623,82.9,148.11,148.1,15.33197914]
[1745939110328,82.9,148.11,148.1,22.0841736]
[1745939112134,82.9,148.11,148.1,15.33197914]
[1745939114336,82.9,148.11,148.1,22.0841736]
[1745939115819,82.9,148.11,148.1,15.33197914]
[1745939118035,82.9,148.11,148.09,0.063]
[1745939118236,82.9,148.1,148.09,0.063]
[1745939118441,82.9,148.1,148.09,15.39497914]
[1745939118623,82.9,148.1,148.09,22.14762955]
[1745939121640,82.9,148.14,148.09,22.14762955]
[1745939121831,82.9,148.14,148.13,15.33197914]
[1745939122027,18.79181043,148.16,148.13,15.33197914]
[1745939123022,26.0,148.17,148.14,15.33197914]
[1745939123341,82.9,148.16,148.12,15.33197914]
[1745939123831,82.9,148.16,148.11,6.75173857]
[1745939124025,82.9,148.15,148.11,6.75173857]
[1745939124545,82.9,148.15,148.14,15.33197914]
[1745939127145,82.9,148.15,148.13,15.33197914]
[1745939127334,82.9,148.15,148.12,15.33197914]
[1745939128842,82.9,148.15,148.13,15.33197914]
[1745939129946,82.9,148.14,148.13,15.33197914]
[1745939131160,82.9,148.14,148.12,15.33197914]
[1745939131342,82.9,148.14,148.11,15.33197914]
[1745939131543,98.23197914,148.13,148.09,0.063]
[1745939131883,82.9,148.12,148.09,15.39497914]
[1745939132365,82.9,148.12,148.1,15.33197914]
[1745939135564,82.9,148.11,148.09,15.39497914]
[1745939135769,82.9,148.1,148.09,0.063]
[1745939138771,15.33197914,148.12,148.09,0.063]
[1745939139173,0.14216157,148.12,148.09,15.39497914]
[1745939144684,82.9,148.11,148.09,6.81562981]
[1745939144972,82.9,148.11,148.1,15.33197914]
[1745939147475,82.9,148.11,148.1,22.0841736]
[1745939149988,82.9,148.11,148.1,15.33197914]
[1745939151347,82.9,148.11,148.09,15.39497914]
[1745939153693,82.9,148.11,148.09,0.063]
[1745939155690,82.9,148.11,148.09,15.39497914]
[1745939156375,82.9,148.1,148.09,15.39497914]
[1745939157679,82.9,148.1,148.09,0.063]
[1745939159083,22.22633517,148.1,148.09,0.063]
[1745939159267,40.87598403,148.1,148.09,0.063]
[1745939167492,40.87598403,148.1,148.06,0.063]
[1745939167493,18.64964886,148.07,148.06,0.063]
[1745939167665,33.981628,148.07,148.06,0.063]
[1745939169080,40.7351905,148.07,148.06,0.063]
[1745939169988,0.14216157,148.09,148.06,0.063]
[1745939169989,0.14216157,148.08,148.06,0.063]
[1745939171070,82.9,148.07,148.06,0.063]
[1745939172493,83.04216157,148.07,148.06,0.063]
[1745939172788,98.37414071,148.07,148.06,0.063]
[1745939172988,83.04216157,148.07,148.06,0.063]
[1745939176287,82.9,148.07,148.06,0.063]
[1745939176789,34.12378957,148.09,148.06,0.063]
[1745939176982,0.14216157,148.08,148.06,0.063]
[1745939177591,15.33197914,148.09,148.06,0.063]
[1745939177889,13.52,148.12,148.08,15.33197914]
[1745939178088,0.14216157,148.13,148.11,15.33197914]
[1745939178305,0.14216157,148.13,148.09,15.33197914]
[1745939178509,0.14216157,148.13,148.1,15.33197914]
[1745939178994,15.47414071,148.13,148.09,15.33197914]
[1745939179405,0.14216157,148.13,148.1,15.33197914]
[1745939180806,41.33197914,148.15,148.1,15.33197914]
[1745939181093,0.14216157,148.14,148.11,15.33197914]
[1745939181289,15.47414071,148.14,148.1,15.33197914]
[1745939182268,22.22463774,148.14,148.1,15.33197914]
[1745939182795,82.9,148.13,148.09,15.33197914]
[1745939183092,15.47414071,148.12,148.07,15.33197914]
[1745939183273,82.9,148.11,148.07,15.33197914]
[1745939183781,98.23197914,148.11,148.07,15.33197914]